{"text_format":"3","workbook":"xlsx","n_sheets":3,"sheets":["רישום מרחק","נתוני רישום","חישוב"],"not_rendered":{"charts":1,"defined_names":17},"read":"whole","date_system":"1900"}

{"sheet":"רישום מרחק","index":0,"n_rows":29,"n_cols":5,"rows_kept":29,"merged":[[0,2,1,4]]}
[null,null,"יומן מרחקי נסיעה"]
{"$rows_empty":9}
[null,null,"להחזר",null,"סה\"כ"]
[null,null,"ק\"מ",null,"החזר"]
[]
[]
[]
[]
[null,null,"2012-05-01",null,"2012-05-10"]
[]
[null,null,"תקופה",null,"תקופה"]
[null,null,"התחלה",null,"סוף"]
[]
[]
[]
[]
[]
[null,null,54,null,{"v":9800,"d":"9,800"}]
[]
[null,null,"החזר",null,"דלק קודם"]
[null,null,"שקל לק\"מ",null,"מד מרחק"]

{"sheet":"נתוני רישום","index":1,"n_rows":19,"n_cols":15,"rows_kept":19,"merged":[[0,1,1,4]]}
[null,"יומן מרחקי נסיעה"]
[{"$nulls":14}," "]
[]
[]
[null,"תאריך","פעילות","קריאת אודומטר 1","מיקום","קריאת אודומטר 2","יעד","החזר","ליטרים","עלות","ק\"מ","ק\"מ לליטר","שקל לק\"מ","הערות"]
[null,"2012-05-01","נסיעה",{"v":10123,"d":"10,123"},"רעננה",{"v":10130,"d":"10,130"},null,null,15.56,{"v":64.11,"d":"₪ 64.11"},{"$f":"miles","v":7},{"$f":"IF(OR(LEN(נתונים[[#This Row],[קריאת אודומטר 2]]),נתונים[[#This Row],[קריאת אודומטר 1]]=\"\"),\"\",IFERROR(נתונים[[#This Row],[ק\"מ]]/נתונים[[#This Row],[ליטרים]],\"\"))","v":""},{"$f":"IF(נתונים[[#This Row],[ק\"מ לליטר]]=\"\",\"\",100*נתונים[[#This Row],[עלות]]/נתונים[[#This Row],[ק\"מ]])","v":""}]
[null,"2012-05-01","נסיעה",{"v":10130,"d":"10,130"},"במשרד",{"v":10200,"d":"10,200"},"רחוב הצפצפות","כן",null,"",{"$f":"miles","v":70},{"$f":"IF(OR(LEN(נתונים[[#This Row],[קריאת אודומטר 2]]),נתונים[[#This Row],[קריאת אודומטר 1]]=\"\"),\"\",IFERROR(נתונים[[#This Row],[ק\"מ]]/נתונים[[#This Row],[ליטרים]],\"\"))","v":""},{"$f":"IF(נתונים[[#This Row],[ק\"מ לליטר]]=\"\",\"\",100*נתונים[[#This Row],[עלות]]/נתונים[[#This Row],[ק\"מ]])","v":""}]
[null,"2012-05-01","נסיעה",{"v":10200,"d":"10,200"},"טריי מחקר",{"v":10285,"d":"10,285"},"במשרד","כן",null,"",{"$f":"miles","v":85},{"$f":"IF(OR(LEN(נתונים[[#This Row],[קריאת אודומטר 2]]),נתונים[[#This Row],[קריאת אודומטר 1]]=\"\"),\"\",IFERROR(נתונים[[#This Row],[ק\"מ]]/נתונים[[#This Row],[ליטרים]],\"\"))","v":""},{"$f":"IF(נתונים[[#This Row],[ק\"מ לליטר]]=\"\",\"\",100*נתונים[[#This Row],[עלות]]/נתונים[[#This Row],[ק\"מ]])","v":""}]
[null,"2012-05-02","נסיעה",{"v":10285,"d":"10,285"},"במשרד",{"v":10450,"d":"10,450"},"יקב קוהו","כן",null,"",{"$f":"miles","v":165},{"$f":"IF(OR(LEN(נתונים[[#This Row],[קריאת אודומטר 2]]),נתונים[[#This Row],[קריאת אודומטר 1]]=\"\"),\"\",IFERROR(נתונים[[#This Row],[ק\"מ]]/נתונים[[#This Row],[ליטרים]],\"\"))","v":""},{"$f":"IF(נתונים[[#This Row],[ק\"מ לליטר]]=\"\",\"\",100*נתונים[[#This Row],[עלות]]/נתונים[[#This Row],[ק\"מ]])","v":""}]
[null,"2012-05-02","דלק",{"v":10450,"d":"10,450"},"דלק",{"$nulls":3},{"v":11.2,"d":"11.20"},{"v":55.42,"d":"₪ 55.42"},{"$f":"miles","v":650},{"$f":"IF(OR(LEN(נתונים[[#This Row],[קריאת אודומטר 2]]),נתונים[[#This Row],[קריאת אודומטר 1]]=\"\"),\"\",IFERROR(נתונים[[#This Row],[ק\"מ]]/נתונים[[#This Row],[ליטרים]],\"\"))","v":{"v":58.03571428571429,"d":"58.0"}},{"$f":"IF(נתונים[[#This Row],[ק\"מ לליטר]]=\"\",\"\",100*נתונים[[#This Row],[עלות]]/נתונים[[#This Row],[ק\"מ]])","v":{"v":8.526153846153846,"d":"8.5"}}]
[null,"2012-05-02","נסיעה",{"v":10500,"d":"10,500"},"יקב קוהו",{"v":10518,"d":"10,518"},"במשרד","כן",null,"",{"$f":"miles","v":18},{"$f":"IF(OR(LEN(נתונים[[#This Row],[קריאת אודומטר 2]]),נתונים[[#This Row],[קריאת אודומטר 1]]=\"\"),\"\",IFERROR(נתונים[[#This Row],[ק\"מ]]/נתונים[[#This Row],[ליטרים]],\"\"))","v":""},{"$f":"IF(נתונים[[#This Row],[ק\"מ לליטר]]=\"\",\"\",100*נתונים[[#This Row],[עלות]]/נתונים[[#This Row],[ק\"מ]])","v":""}]
[null,"2012-05-03","נסיעה",{"v":10518,"d":"10,518"},"במשרד",{"v":10745,"d":"10,745"},"במשרד","כן",null,"",{"$f":"miles","v":227},{"$f":"IF(OR(LEN(נתונים[[#This Row],[קריאת אודומטר 2]]),נתונים[[#This Row],[קריאת אודומטר 1]]=\"\"),\"\",IFERROR(נתונים[[#This Row],[ק\"מ]]/נתונים[[#This Row],[ליטרים]],\"\"))","v":""},{"$f":"IF(נתונים[[#This Row],[ק\"מ לליטר]]=\"\",\"\",100*נתונים[[#This Row],[עלות]]/נתונים[[#This Row],[ק\"מ]])","v":""}]
[null,"2012-05-04","דלק",{"v":10745,"d":"10,745"},"רעננה",{"$nulls":3},{"v":16.6,"d":"16.60"},{"v":69.24,"d":"₪ 69.24"},{"$f":"miles","v":295},{"$f":"IF(OR(LEN(נתונים[[#This Row],[קריאת אודומטר 2]]),נתונים[[#This Row],[קריאת אודומטר 1]]=\"\"),\"\",IFERROR(נתונים[[#This Row],[ק\"מ]]/נתונים[[#This Row],[ליטרים]],\"\"))","v":{"v":17.771084337349397,"d":"17.8"}},{"$f":"IF(נתונים[[#This Row],[ק\"מ לליטר]]=\"\",\"\",100*נתונים[[#This Row],[עלות]]/נתונים[[#This Row],[ק\"מ]])","v":{"v":23.471186440677965,"d":"23.5"}}]
[null,"2012-05-04","נסיעה",{"v":10745,"d":"10,745"},"במשרד",{"v":10800,"d":"10,800"},"תל-אביב","כן",null,"",{"$f":"miles","v":55},{"$f":"IF(OR(LEN(נתונים[[#This Row],[קריאת אודומטר 2]]),נתונים[[#This Row],[קריאת אודומטר 1]]=\"\"),\"\",IFERROR(נתונים[[#This Row],[ק\"מ]]/נתונים[[#This Row],[ליטרים]],\"\"))","v":""},{"$f":"IF(נתונים[[#This Row],[ק\"מ לליטר]]=\"\",\"\",100*נתונים[[#This Row],[עלות]]/נתונים[[#This Row],[ק\"מ]])","v":""}]
[null,"2012-05-04","נסיעה",{"v":10800,"d":"10,800"},"תל-אביב",{"v":10875,"d":"10,875"},"במשרד","כן",null,"",{"$f":"miles","v":75},{"$f":"IF(OR(LEN(נתונים[[#This Row],[קריאת אודומטר 2]]),נתונים[[#This Row],[קריאת אודומטר 1]]=\"\"),\"\",IFERROR(נתונים[[#This Row],[ק\"מ]]/נתונים[[#This Row],[ליטרים]],\"\"))","v":""},{"$f":"IF(נתונים[[#This Row],[ק\"מ לליטר]]=\"\",\"\",100*נתונים[[#This Row],[עלות]]/נתונים[[#This Row],[ק\"מ]])","v":""}]
[null,"2012-05-07","נסיעה",{"v":10875,"d":"10,875"},"במשרד",{"v":10921,"d":"10,921"},"רחוב הצפצפות","כן",null,"",{"$f":"miles","v":46},{"$f":"IF(OR(LEN(נתונים[[#This Row],[קריאת אודומטר 2]]),נתונים[[#This Row],[קריאת אודומטר 1]]=\"\"),\"\",IFERROR(נתונים[[#This Row],[ק\"מ]]/נתונים[[#This Row],[ליטרים]],\"\"))","v":""},{"$f":"IF(נתונים[[#This Row],[ק\"מ לליטר]]=\"\",\"\",100*נתונים[[#This Row],[עלות]]/נתונים[[#This Row],[ק\"מ]])","v":""}]
[null,"2012-05-07","נסיעה",{"v":10921,"d":"10,921"},"טריי מחקר",{"v":10969,"d":"10,969"},"במשרד","כן",null,"",{"$f":"miles","v":48},{"$f":"IF(OR(LEN(נתונים[[#This Row],[קריאת אודומטר 2]]),נתונים[[#This Row],[קריאת אודומטר 1]]=\"\"),\"\",IFERROR(נתונים[[#This Row],[ק\"מ]]/נתונים[[#This Row],[ליטרים]],\"\"))","v":""},{"$f":"IF(נתונים[[#This Row],[ק\"מ לליטר]]=\"\",\"\",100*נתונים[[#This Row],[עלות]]/נתונים[[#This Row],[ק\"מ]])","v":""}]
[null,"2012-05-09","נסיעה",{"v":10969,"d":"10,969"},"במשרד",{"v":11000,"d":"11,000"},"הרצליה","כן",null,"",{"$f":"miles","v":31},{"$f":"IF(OR(LEN(נתונים[[#This Row],[קריאת אודומטר 2]]),נתונים[[#This Row],[קריאת אודומטר 1]]=\"\"),\"\",IFERROR(נתונים[[#This Row],[ק\"מ]]/נתונים[[#This Row],[ליטרים]],\"\"))","v":""},{"$f":"IF(נתונים[[#This Row],[ק\"מ לליטר]]=\"\",\"\",100*נתונים[[#This Row],[עלות]]/נתונים[[#This Row],[ק\"מ]])","v":""}]
[null,"2012-05-09","נסיעה",{"v":11000,"d":"11,000"},"הרצליה",{"v":11100,"d":"11,100"},"בית","לא",null,"",{"$f":"miles","v":100},{"$f":"IF(OR(LEN(נתונים[[#This Row],[קריאת אודומטר 2]]),נתונים[[#This Row],[קריאת אודומטר 1]]=\"\"),\"\",IFERROR(נתונים[[#This Row],[ק\"מ]]/נתונים[[#This Row],[ליטרים]],\"\"))","v":""},{"$f":"IF(נתונים[[#This Row],[ק\"מ לליטר]]=\"\",\"\",100*נתונים[[#This Row],[עלות]]/נתונים[[#This Row],[ק\"מ]])","v":""}]

{"sheet":"חישוב","index":2,"n_rows":69,"n_cols":13,"rows_kept":69,"hidden":true}
["*** גיליון זה יישאר נסתר ***"]
[]
[]
[]
[]
[{"$nulls":8},{"$f":"OFFSET(I9,,secondAxis=\"ק''מלליטר\")","v":"ק\"מ לליטר"}]
[{"$nulls":12},2]
[{"$nulls":7},"נסיעה","דלק","דלק",null,"ציר שני:  ",{"$f":"REPT(\"ק''מ לליטר\",M7=1)&REPT(\"עלות דלק\",M7=2)","v":"עלות דלק"}]
[{"$nulls":7},"מרחק נסיעה בק\"מ","ק\"מ לליטר","שקל לק\"מ"]
[null,null,"החזר בק\"מ:  ",{"$f":"SUMIFS(נתונים[ק\"מ],נתונים[החזר],\"כן\",נתונים[תאריך],\">=\"&periodStart,נתונים[תאריך],\"<=\"&periodEnd)","v":820},null,1,{"$f":"periodStart","v":"2012-05-01"},{"$f":"SUMIFS(נתונים[ק\"מ],נתונים[תאריך],G10,נתונים[פעילות],$H$8)","v":162},{"$f":"IFERROR(AVERAGEIFS(נתונים[ק\"מ לליטר],נתונים[תאריך],G10,נתונים[פעילות],$I$8),NA())","v":{"$error":"#N/A"}},{"$f":"IFERROR(AVERAGEIFS(נתונים[שקל לק\"מ],נתונים[תאריך],G10,נתונים[פעילות],$J$8),NA())","v":{"$error":"#N/A"}}]
[null,null,"סה\"כ החזר  ",{"$f":"D10*ReimbursementPerMile/100","v":{"v":442.8,"d":"₪ 442.80"}},null,2,{"$f":"G10+1","v":"2012-05-02"},{"$f":"SUMIFS(נתונים[ק\"מ],נתונים[תאריך],G11,נתונים[פעילות],$H$8)","v":183},{"$f":"IFERROR(AVERAGEIFS(נתונים[ק\"מ לליטר],נתונים[תאריך],G11,נתונים[פעילות],$I$8),NA())","v":{"v":58.03571428571429,"d":"58.0"}},{"$f":"IFERROR(AVERAGEIFS(נתונים[שקל לק\"מ],נתונים[תאריך],G11,נתונים[פעילות],$J$8),NA())","v":{"v":8.526153846153846,"d":"8.5"}}]
[{"$nulls":5},3,"2012-05-03",{"$f":"SUMIFS(נתונים[ק\"מ],נתונים[תאריך],G12,נתונים[פעילות],$H$8)","v":227},{"$f":"IFERROR(AVERAGEIFS(נתונים[ק\"מ לליטר],נתונים[תאריך],G12,נתונים[פעילות],$I$8),NA())","v":{"$error":"#N/A"}},{"$f":"IFERROR(AVERAGEIFS(נתונים[שקל לק\"מ],נתונים[תאריך],G12,נתונים[פעילות],$J$8),NA())","v":{"$error":"#N/A"}}]
[{"$nulls":5},4,"2012-05-04",{"$f":"SUMIFS(נתונים[ק\"מ],נתונים[תאריך],G13,נתונים[פעילות],$H$8)","v":130},{"$f":"IFERROR(AVERAGEIFS(נתונים[ק\"מ לליטר],נתונים[תאריך],G13,נתונים[פעילות],$I$8),NA())","v":{"v":17.771084337349397,"d":"17.8"}},{"$f":"IFERROR(AVERAGEIFS(נתונים[שקל לק\"מ],נתונים[תאריך],G13,נתונים[פעילות],$J$8),NA())","v":{"v":23.471186440677965,"d":"23.5"}}]
[{"$nulls":5},5,"2012-05-05",{"$f":"SUMIFS(נתונים[ק\"מ],נתונים[תאריך],G14,נתונים[פעילות],$H$8)","v":0},{"$f":"IFERROR(AVERAGEIFS(נתונים[ק\"מ לליטר],נתונים[תאריך],G14,נתונים[פעילות],$I$8),NA())","v":{"$error":"#N/A"}},{"$f":"IFERROR(AVERAGEIFS(נתונים[שקל לק\"מ],נתונים[תאריך],G14,נתונים[פעילות],$J$8),NA())","v":{"$error":"#N/A"}}]
[{"$nulls":5},6,"2012-05-06",{"$f":"SUMIFS(נתונים[ק\"מ],נתונים[תאריך],G15,נתונים[פעילות],$H$8)","v":0},{"$f":"IFERROR(AVERAGEIFS(נתונים[ק\"מ לליטר],נתונים[תאריך],G15,נתונים[פעילות],$I$8),NA())","v":{"$error":"#N/A"}},{"$f":"IFERROR(AVERAGEIFS(נתונים[שקל לק\"מ],נתונים[תאריך],G15,נתונים[פעילות],$J$8),NA())","v":{"$error":"#N/A"}}]
[{"$nulls":5},7,"2012-05-07",{"$f":"SUMIFS(נתונים[ק\"מ],נתונים[תאריך],G16,נתונים[פעילות],$H$8)","v":94},{"$f":"IFERROR(AVERAGEIFS(נתונים[ק\"מ לליטר],נתונים[תאריך],G16,נתונים[פעילות],$I$8),NA())","v":{"$error":"#N/A"}},{"$f":"IFERROR(AVERAGEIFS(נתונים[שקל לק\"מ],נתונים[תאריך],G16,נתונים[פעילות],$J$8),NA())","v":{"$error":"#N/A"}}]
[{"$nulls":5},8,"2012-05-08",{"$f":"SUMIFS(נתונים[ק\"מ],נתונים[תאריך],G17,נתונים[פעילות],$H$8)","v":0},{"$f":"IFERROR(AVERAGEIFS(נתונים[ק\"מ לליטר],נתונים[תאריך],G17,נתונים[פעילות],$I$8),NA())","v":{"$error":"#N/A"}},{"$f":"IFERROR(AVERAGEIFS(נתונים[שקל לק\"מ],נתונים[תאריך],G17,נתונים[פעילות],$J$8),NA())","v":{"$error":"#N/A"}}]
[{"$nulls":5},9,"2012-05-09",{"$f":"SUMIFS(נתונים[ק\"מ],נתונים[תאריך],G18,נתונים[פעילות],$H$8)","v":131},{"$f":"IFERROR(AVERAGEIFS(נתונים[ק\"מ לליטר],נתונים[תאריך],G18,נתונים[פעילות],$I$8),NA())","v":{"$error":"#N/A"}},{"$f":"IFERROR(AVERAGEIFS(נתונים[שקל לק\"מ],נתונים[תאריך],G18,נתונים[פעילות],$J$8),NA())","v":{"$error":"#N/A"}}]
[{"$nulls":5},10,"2012-05-10",{"$f":"SUMIFS(נתונים[ק\"מ],נתונים[תאריך],G19,נתונים[פעילות],$H$8)","v":0},{"$f":"IFERROR(AVERAGEIFS(נתונים[ק\"מ לליטר],נתונים[תאריך],G19,נתונים[פעילות],$I$8),NA())","v":{"$error":"#N/A"}},{"$f":"IFERROR(AVERAGEIFS(נתונים[שקל לק\"מ],נתונים[תאריך],G19,נתונים[פעילות],$J$8),NA())","v":{"$error":"#N/A"}}]
[{"$nulls":5},11,"2012-05-11",{"$f":"SUMIFS(נתונים[ק\"מ],נתונים[תאריך],G20,נתונים[פעילות],$H$8)","v":0},{"$f":"IFERROR(AVERAGEIFS(נתונים[ק\"מ לליטר],נתונים[תאריך],G20,נתונים[פעילות],$I$8),NA())","v":{"$error":"#N/A"}},{"$f":"IFERROR(AVERAGEIFS(נתונים[שקל לק\"מ],נתונים[תאריך],G20,נתונים[פעילות],$J$8),NA())","v":{"$error":"#N/A"}}]
[{"$nulls":5},12,"2012-05-12",{"$f":"SUMIFS(נתונים[ק\"מ],נתונים[תאריך],G21,נתונים[פעילות],$H$8)","v":0},{"$f":"IFERROR(AVERAGEIFS(נתונים[ק\"מ לליטר],נתונים[תאריך],G21,נתונים[פעילות],$I$8),NA())","v":{"$error":"#N/A"}},{"$f":"IFERROR(AVERAGEIFS(נתונים[שקל לק\"מ],נתונים[תאריך],G21,נתונים[פעילות],$J$8),NA())","v":{"$error":"#N/A"}}]
[{"$nulls":5},13,"2012-05-13",{"$f":"SUMIFS(נתונים[ק\"מ],נתונים[תאריך],G22,נתונים[פעילות],$H$8)","v":0},{"$f":"IFERROR(AVERAGEIFS(נתונים[ק\"מ לליטר],נתונים[תאריך],G22,נתונים[פעילות],$I$8),NA())","v":{"$error":"#N/A"}},{"$f":"IFERROR(AVERAGEIFS(נתונים[שקל לק\"מ],נתונים[תאריך],G22,נתונים[פעילות],$J$8),NA())","v":{"$error":"#N/A"}}]
[{"$nulls":5},14,"2012-05-14",{"$f":"SUMIFS(נתונים[ק\"מ],נתונים[תאריך],G23,נתונים[פעילות],$H$8)","v":0},{"$f":"IFERROR(AVERAGEIFS(נתונים[ק\"מ לליטר],נתונים[תאריך],G23,נתונים[פעילות],$I$8),NA())","v":{"$error":"#N/A"}},{"$f":"IFERROR(AVERAGEIFS(נתונים[שקל לק\"מ],נתונים[תאריך],G23,נתונים[פעילות],$J$8),NA())","v":{"$error":"#N/A"}}]
[{"$nulls":5},15,"2012-05-15",{"$f":"SUMIFS(נתונים[ק\"מ],נתונים[תאריך],G24,נתונים[פעילות],$H$8)","v":0},{"$f":"IFERROR(AVERAGEIFS(נתונים[ק\"מ לליטר],נתונים[תאריך],G24,נתונים[פעילות],$I$8),NA())","v":{"$error":"#N/A"}},{"$f":"IFERROR(AVERAGEIFS(נתונים[שקל לק\"מ],נתונים[תאריך],G24,נתונים[פעילות],$J$8),NA())","v":{"$error":"#N/A"}}]
[{"$nulls":5},16,"2012-05-16",{"$f":"SUMIFS(נתונים[ק\"מ],נתונים[תאריך],G25,נתונים[פעילות],$H$8)","v":0},{"$f":"IFERROR(AVERAGEIFS(נתונים[ק\"מ לליטר],נתונים[תאריך],G25,נתונים[פעילות],$I$8),NA())","v":{"$error":"#N/A"}},{"$f":"IFERROR(AVERAGEIFS(נתונים[שקל לק\"מ],נתונים[תאריך],G25,נתונים[פעילות],$J$8),NA())","v":{"$error":"#N/A"}}]
[{"$nulls":5},17,"2012-05-17",{"$f":"SUMIFS(נתונים[ק\"מ],נתונים[תאריך],G26,נתונים[פעילות],$H$8)","v":0},{"$f":"IFERROR(AVERAGEIFS(נתונים[ק\"מ לליטר],נתונים[תאריך],G26,נתונים[פעילות],$I$8),NA())","v":{"$error":"#N/A"}},{"$f":"IFERROR(AVERAGEIFS(נתונים[שקל לק\"מ],נתונים[תאריך],G26,נתונים[פעילות],$J$8),NA())","v":{"$error":"#N/A"}}]
[{"$nulls":5},18,"2012-05-18",{"$f":"SUMIFS(נתונים[ק\"מ],נתונים[תאריך],G27,נתונים[פעילות],$H$8)","v":0},{"$f":"IFERROR(AVERAGEIFS(נתונים[ק\"מ לליטר],נתונים[תאריך],G27,נתונים[פעילות],$I$8),NA())","v":{"$error":"#N/A"}},{"$f":"IFERROR(AVERAGEIFS(נתונים[שקל לק\"מ],נתונים[תאריך],G27,נתונים[פעילות],$J$8),NA())","v":{"$error":"#N/A"}}]
[{"$nulls":5},19,"2012-05-19",{"$f":"SUMIFS(נתונים[ק\"מ],נתונים[תאריך],G28,נתונים[פעילות],$H$8)","v":0},{"$f":"IFERROR(AVERAGEIFS(נתונים[ק\"מ לליטר],נתונים[תאריך],G28,נתונים[פעילות],$I$8),NA())","v":{"$error":"#N/A"}},{"$f":"IFERROR(AVERAGEIFS(נתונים[שקל לק\"מ],נתונים[תאריך],G28,נתונים[פעילות],$J$8),NA())","v":{"$error":"#N/A"}}]
[{"$nulls":5},20,"2012-05-20",{"$f":"SUMIFS(נתונים[ק\"מ],נתונים[תאריך],G29,נתונים[פעילות],$H$8)","v":0},{"$f":"IFERROR(AVERAGEIFS(נתונים[ק\"מ לליטר],נתונים[תאריך],G29,נתונים[פעילות],$I$8),NA())","v":{"$error":"#N/A"}},{"$f":"IFERROR(AVERAGEIFS(נתונים[שקל לק\"מ],נתונים[תאריך],G29,נתונים[פעילות],$J$8),NA())","v":{"$error":"#N/A"}}]
[{"$nulls":5},21,"2012-05-21",{"$f":"SUMIFS(נתונים[ק\"מ],נתונים[תאריך],G30,נתונים[פעילות],$H$8)","v":0},{"$f":"IFERROR(AVERAGEIFS(נתונים[ק\"מ לליטר],נתונים[תאריך],G30,נתונים[פעילות],$I$8),NA())","v":{"$error":"#N/A"}},{"$f":"IFERROR(AVERAGEIFS(נתונים[שקל לק\"מ],נתונים[תאריך],G30,נתונים[פעילות],$J$8),NA())","v":{"$error":"#N/A"}}]
[{"$nulls":5},22,"2012-05-22",{"$f":"SUMIFS(נתונים[ק\"מ],נתונים[תאריך],G31,נתונים[פעילות],$H$8)","v":0},{"$f":"IFERROR(AVERAGEIFS(נתונים[ק\"מ לליטר],נתונים[תאריך],G31,נתונים[פעילות],$I$8),NA())","v":{"$error":"#N/A"}},{"$f":"IFERROR(AVERAGEIFS(נתונים[שקל לק\"מ],נתונים[תאריך],G31,נתונים[פעילות],$J$8),NA())","v":{"$error":"#N/A"}}]
[{"$nulls":5},23,"2012-05-23",{"$f":"SUMIFS(נתונים[ק\"מ],נתונים[תאריך],G32,נתונים[פעילות],$H$8)","v":0},{"$f":"IFERROR(AVERAGEIFS(נתונים[ק\"מ לליטר],נתונים[תאריך],G32,נתונים[פעילות],$I$8),NA())","v":{"$error":"#N/A"}},{"$f":"IFERROR(AVERAGEIFS(נתונים[שקל לק\"מ],נתונים[תאריך],G32,נתונים[פעילות],$J$8),NA())","v":{"$error":"#N/A"}}]
[{"$nulls":5},24,"2012-05-24",{"$f":"SUMIFS(נתונים[ק\"מ],נתונים[תאריך],G33,נתונים[פעילות],$H$8)","v":0},{"$f":"IFERROR(AVERAGEIFS(נתונים[ק\"מ לליטר],נתונים[תאריך],G33,נתונים[פעילות],$I$8),NA())","v":{"$error":"#N/A"}},{"$f":"IFERROR(AVERAGEIFS(נתונים[שקל לק\"מ],נתונים[תאריך],G33,נתונים[פעילות],$J$8),NA())","v":{"$error":"#N/A"}}]
[{"$nulls":5},25,"2012-05-25",{"$f":"SUMIFS(נתונים[ק\"מ],נתונים[תאריך],G34,נתונים[פעילות],$H$8)","v":0},{"$f":"IFERROR(AVERAGEIFS(נתונים[ק\"מ לליטר],נתונים[תאריך],G34,נתונים[פעילות],$I$8),NA())","v":{"$error":"#N/A"}},{"$f":"IFERROR(AVERAGEIFS(נתונים[שקל לק\"מ],נתונים[תאריך],G34,נתונים[פעילות],$J$8),NA())","v":{"$error":"#N/A"}}]
[{"$nulls":5},26,"2012-05-26",{"$f":"SUMIFS(נתונים[ק\"מ],נתונים[תאריך],G35,נתונים[פעילות],$H$8)","v":0},{"$f":"IFERROR(AVERAGEIFS(נתונים[ק\"מ לליטר],נתונים[תאריך],G35,נתונים[פעילות],$I$8),NA())","v":{"$error":"#N/A"}},{"$f":"IFERROR(AVERAGEIFS(נתונים[שקל לק\"מ],נתונים[תאריך],G35,נתונים[פעילות],$J$8),NA())","v":{"$error":"#N/A"}}]
[{"$nulls":5},27,"2012-05-27",{"$f":"SUMIFS(נתונים[ק\"מ],נתונים[תאריך],G36,נתונים[פעילות],$H$8)","v":0},{"$f":"IFERROR(AVERAGEIFS(נתונים[ק\"מ לליטר],נתונים[תאריך],G36,נתונים[פעילות],$I$8),NA())","v":{"$error":"#N/A"}},{"$f":"IFERROR(AVERAGEIFS(נתונים[שקל לק\"מ],נתונים[תאריך],G36,נתונים[פעילות],$J$8),NA())","v":{"$error":"#N/A"}}]
[{"$nulls":5},28,"2012-05-28",{"$f":"SUMIFS(נתונים[ק\"מ],נתונים[תאריך],G37,נתונים[פעילות],$H$8)","v":0},{"$f":"IFERROR(AVERAGEIFS(נתונים[ק\"מ לליטר],נתונים[תאריך],G37,נתונים[פעילות],$I$8),NA())","v":{"$error":"#N/A"}},{"$f":"IFERROR(AVERAGEIFS(נתונים[שקל לק\"מ],נתונים[תאריך],G37,נתונים[פעילות],$J$8),NA())","v":{"$error":"#N/A"}}]
[{"$nulls":5},29,"2012-05-29",{"$f":"SUMIFS(נתונים[ק\"מ],נתונים[תאריך],G38,נתונים[פעילות],$H$8)","v":0},{"$f":"IFERROR(AVERAGEIFS(נתונים[ק\"מ לליטר],נתונים[תאריך],G38,נתונים[פעילות],$I$8),NA())","v":{"$error":"#N/A"}},{"$f":"IFERROR(AVERAGEIFS(נתונים[שקל לק\"מ],נתונים[תאריך],G38,נתונים[פעילות],$J$8),NA())","v":{"$error":"#N/A"}}]
[{"$nulls":5},30,"2012-05-30",{"$f":"SUMIFS(נתונים[ק\"מ],נתונים[תאריך],G39,נתונים[פעילות],$H$8)","v":0},{"$f":"IFERROR(AVERAGEIFS(נתונים[ק\"מ לליטר],נתונים[תאריך],G39,נתונים[פעילות],$I$8),NA())","v":{"$error":"#N/A"}},{"$f":"IFERROR(AVERAGEIFS(נתונים[שקל לק\"מ],נתונים[תאריך],G39,נתונים[פעילות],$J$8),NA())","v":{"$error":"#N/A"}}]
[{"$nulls":5},31,"2012-05-31",{"$f":"SUMIFS(נתונים[ק\"מ],נתונים[תאריך],G40,נתונים[פעילות],$H$8)","v":0},{"$f":"IFERROR(AVERAGEIFS(נתונים[ק\"מ לליטר],נתונים[תאריך],G40,נתונים[פעילות],$I$8),NA())","v":{"$error":"#N/A"}},{"$f":"IFERROR(AVERAGEIFS(נתונים[שקל לק\"מ],נתונים[תאריך],G40,נתונים[פעילות],$J$8),NA())","v":{"$error":"#N/A"}}]
[{"$nulls":5},32,"2012-06-01",{"$f":"SUMIFS(נתונים[ק\"מ],נתונים[תאריך],G41,נתונים[פעילות],$H$8)","v":0},{"$f":"IFERROR(AVERAGEIFS(נתונים[ק\"מ לליטר],נתונים[תאריך],G41,נתונים[פעילות],$I$8),NA())","v":{"$error":"#N/A"}},{"$f":"IFERROR(AVERAGEIFS(נתונים[שקל לק\"מ],נתונים[תאריך],G41,נתונים[פעילות],$J$8),NA())","v":{"$error":"#N/A"}}]
[{"$nulls":5},33,"2012-06-02",{"$f":"SUMIFS(נתונים[ק\"מ],נתונים[תאריך],G42,נתונים[פעילות],$H$8)","v":0},{"$f":"IFERROR(AVERAGEIFS(נתונים[ק\"מ לליטר],נתונים[תאריך],G42,נתונים[פעילות],$I$8),NA())","v":{"$error":"#N/A"}},{"$f":"IFERROR(AVERAGEIFS(נתונים[שקל לק\"מ],נתונים[תאריך],G42,נתונים[פעילות],$J$8),NA())","v":{"$error":"#N/A"}}]
[{"$nulls":5},34,{"$f":"G42+1","v":"2012-06-03"},{"$f":"SUMIFS(נתונים[ק\"מ],נתונים[תאריך],G43,נתונים[פעילות],$H$8)","v":0},{"$f":"IFERROR(AVERAGEIFS(נתונים[ק\"מ לליטר],נתונים[תאריך],G43,נתונים[פעילות],$I$8),NA())","v":{"$error":"#N/A"}},{"$f":"IFERROR(AVERAGEIFS(נתונים[שקל לק\"מ],נתונים[תאריך],G43,נתונים[פעילות],$J$8),NA())","v":{"$error":"#N/A"}}]
[{"$nulls":5},35,"2012-06-04",{"$f":"SUMIFS(נתונים[ק\"מ],נתונים[תאריך],G44,נתונים[פעילות],$H$8)","v":0},{"$f":"IFERROR(AVERAGEIFS(נתונים[ק\"מ לליטר],נתונים[תאריך],G44,נתונים[פעילות],$I$8),NA())","v":{"$error":"#N/A"}},{"$f":"IFERROR(AVERAGEIFS(נתונים[שקל לק\"מ],נתונים[תאריך],G44,נתונים[פעילות],$J$8),NA())","v":{"$error":"#N/A"}}]
[{"$nulls":5},36,"2012-06-05",{"$f":"SUMIFS(נתונים[ק\"מ],נתונים[תאריך],G45,נתונים[פעילות],$H$8)","v":0},{"$f":"IFERROR(AVERAGEIFS(נתונים[ק\"מ לליטר],נתונים[תאריך],G45,נתונים[פעילות],$I$8),NA())","v":{"$error":"#N/A"}},{"$f":"IFERROR(AVERAGEIFS(נתונים[שקל לק\"מ],נתונים[תאריך],G45,נתונים[פעילות],$J$8),NA())","v":{"$error":"#N/A"}}]
[{"$nulls":5},37,"2012-06-06",{"$f":"SUMIFS(נתונים[ק\"מ],נתונים[תאריך],G46,נתונים[פעילות],$H$8)","v":0},{"$f":"IFERROR(AVERAGEIFS(נתונים[ק\"מ לליטר],נתונים[תאריך],G46,נתונים[פעילות],$I$8),NA())","v":{"$error":"#N/A"}},{"$f":"IFERROR(AVERAGEIFS(נתונים[שקל לק\"מ],נתונים[תאריך],G46,נתונים[פעילות],$J$8),NA())","v":{"$error":"#N/A"}}]
[{"$nulls":5},38,"2012-06-07",{"$f":"SUMIFS(נתונים[ק\"מ],נתונים[תאריך],G47,נתונים[פעילות],$H$8)","v":0},{"$f":"IFERROR(AVERAGEIFS(נתונים[ק\"מ לליטר],נתונים[תאריך],G47,נתונים[פעילות],$I$8),NA())","v":{"$error":"#N/A"}},{"$f":"IFERROR(AVERAGEIFS(נתונים[שקל לק\"מ],נתונים[תאריך],G47,נתונים[פעילות],$J$8),NA())","v":{"$error":"#N/A"}}]
[{"$nulls":5},39,"2012-06-08",{"$f":"SUMIFS(נתונים[ק\"מ],נתונים[תאריך],G48,נתונים[פעילות],$H$8)","v":0},{"$f":"IFERROR(AVERAGEIFS(נתונים[ק\"מ לליטר],נתונים[תאריך],G48,נתונים[פעילות],$I$8),NA())","v":{"$error":"#N/A"}},{"$f":"IFERROR(AVERAGEIFS(נתונים[שקל לק\"מ],נתונים[תאריך],G48,נתונים[פעילות],$J$8),NA())","v":{"$error":"#N/A"}}]
[{"$nulls":5},40,"2012-06-09",{"$f":"SUMIFS(נתונים[ק\"מ],נתונים[תאריך],G49,נתונים[פעילות],$H$8)","v":0},{"$f":"IFERROR(AVERAGEIFS(נתונים[ק\"מ לליטר],נתונים[תאריך],G49,נתונים[פעילות],$I$8),NA())","v":{"$error":"#N/A"}},{"$f":"IFERROR(AVERAGEIFS(נתונים[שקל לק\"מ],נתונים[תאריך],G49,נתונים[פעילות],$J$8),NA())","v":{"$error":"#N/A"}}]
[{"$nulls":5},41,"2012-06-10",{"$f":"SUMIFS(נתונים[ק\"מ],נתונים[תאריך],G50,נתונים[פעילות],$H$8)","v":0},{"$f":"IFERROR(AVERAGEIFS(נתונים[ק\"מ לליטר],נתונים[תאריך],G50,נתונים[פעילות],$I$8),NA())","v":{"$error":"#N/A"}},{"$f":"IFERROR(AVERAGEIFS(נתונים[שקל לק\"מ],נתונים[תאריך],G50,נתונים[פעילות],$J$8),NA())","v":{"$error":"#N/A"}}]
[{"$nulls":5},42,"2012-06-11",{"$f":"SUMIFS(נתונים[ק\"מ],נתונים[תאריך],G51,נתונים[פעילות],$H$8)","v":0},{"$f":"IFERROR(AVERAGEIFS(נתונים[ק\"מ לליטר],נתונים[תאריך],G51,נתונים[פעילות],$I$8),NA())","v":{"$error":"#N/A"}},{"$f":"IFERROR(AVERAGEIFS(נתונים[שקל לק\"מ],נתונים[תאריך],G51,נתונים[פעילות],$J$8),NA())","v":{"$error":"#N/A"}}]
[{"$nulls":5},43,"2012-06-12",{"$f":"SUMIFS(נתונים[ק\"מ],נתונים[תאריך],G52,נתונים[פעילות],$H$8)","v":0},{"$f":"IFERROR(AVERAGEIFS(נתונים[ק\"מ לליטר],נתונים[תאריך],G52,נתונים[פעילות],$I$8),NA())","v":{"$error":"#N/A"}},{"$f":"IFERROR(AVERAGEIFS(נתונים[שקל לק\"מ],נתונים[תאריך],G52,נתונים[פעילות],$J$8),NA())","v":{"$error":"#N/A"}}]
[{"$nulls":5},44,"2012-06-13",{"$f":"SUMIFS(נתונים[ק\"מ],נתונים[תאריך],G53,נתונים[פעילות],$H$8)","v":0},{"$f":"IFERROR(AVERAGEIFS(נתונים[ק\"מ לליטר],נתונים[תאריך],G53,נתונים[פעילות],$I$8),NA())","v":{"$error":"#N/A"}},{"$f":"IFERROR(AVERAGEIFS(נתונים[שקל לק\"מ],נתונים[תאריך],G53,נתונים[פעילות],$J$8),NA())","v":{"$error":"#N/A"}}]
[{"$nulls":5},45,"2012-06-14",{"$f":"SUMIFS(נתונים[ק\"מ],נתונים[תאריך],G54,נתונים[פעילות],$H$8)","v":0},{"$f":"IFERROR(AVERAGEIFS(נתונים[ק\"מ לליטר],נתונים[תאריך],G54,נתונים[פעילות],$I$8),NA())","v":{"$error":"#N/A"}},{"$f":"IFERROR(AVERAGEIFS(נתונים[שקל לק\"מ],נתונים[תאריך],G54,נתונים[פעילות],$J$8),NA())","v":{"$error":"#N/A"}}]
[{"$nulls":5},46,"2012-06-15",{"$f":"SUMIFS(נתונים[ק\"מ],נתונים[תאריך],G55,נתונים[פעילות],$H$8)","v":0},{"$f":"IFERROR(AVERAGEIFS(נתונים[ק\"מ לליטר],נתונים[תאריך],G55,נתונים[פעילות],$I$8),NA())","v":{"$error":"#N/A"}},{"$f":"IFERROR(AVERAGEIFS(נתונים[שקל לק\"מ],נתונים[תאריך],G55,נתונים[פעילות],$J$8),NA())","v":{"$error":"#N/A"}}]
[{"$nulls":5},47,"2012-06-16",{"$f":"SUMIFS(נתונים[ק\"מ],נתונים[תאריך],G56,נתונים[פעילות],$H$8)","v":0},{"$f":"IFERROR(AVERAGEIFS(נתונים[ק\"מ לליטר],נתונים[תאריך],G56,נתונים[פעילות],$I$8),NA())","v":{"$error":"#N/A"}},{"$f":"IFERROR(AVERAGEIFS(נתונים[שקל לק\"מ],נתונים[תאריך],G56,נתונים[פעילות],$J$8),NA())","v":{"$error":"#N/A"}}]
[{"$nulls":5},48,"2012-06-17",{"$f":"SUMIFS(נתונים[ק\"מ],נתונים[תאריך],G57,נתונים[פעילות],$H$8)","v":0},{"$f":"IFERROR(AVERAGEIFS(נתונים[ק\"מ לליטר],נתונים[תאריך],G57,נתונים[פעילות],$I$8),NA())","v":{"$error":"#N/A"}},{"$f":"IFERROR(AVERAGEIFS(נתונים[שקל לק\"מ],נתונים[תאריך],G57,נתונים[פעילות],$J$8),NA())","v":{"$error":"#N/A"}}]
[{"$nulls":5},49,"2012-06-18",{"$f":"SUMIFS(נתונים[ק\"מ],נתונים[תאריך],G58,נתונים[פעילות],$H$8)","v":0},{"$f":"IFERROR(AVERAGEIFS(נתונים[ק\"מ לליטר],נתונים[תאריך],G58,נתונים[פעילות],$I$8),NA())","v":{"$error":"#N/A"}},{"$f":"IFERROR(AVERAGEIFS(נתונים[שקל לק\"מ],נתונים[תאריך],G58,נתונים[פעילות],$J$8),NA())","v":{"$error":"#N/A"}}]
[{"$nulls":5},50,"2012-06-19",{"$f":"SUMIFS(נתונים[ק\"מ],נתונים[תאריך],G59,נתונים[פעילות],$H$8)","v":0},{"$f":"IFERROR(AVERAGEIFS(נתונים[ק\"מ לליטר],נתונים[תאריך],G59,נתונים[פעילות],$I$8),NA())","v":{"$error":"#N/A"}},{"$f":"IFERROR(AVERAGEIFS(נתונים[שקל לק\"מ],נתונים[תאריך],G59,נתונים[פעילות],$J$8),NA())","v":{"$error":"#N/A"}}]
[{"$nulls":5},51,"2012-06-20",{"$f":"SUMIFS(נתונים[ק\"מ],נתונים[תאריך],G60,נתונים[פעילות],$H$8)","v":0},{"$f":"IFERROR(AVERAGEIFS(נתונים[ק\"מ לליטר],נתונים[תאריך],G60,נתונים[פעילות],$I$8),NA())","v":{"$error":"#N/A"}},{"$f":"IFERROR(AVERAGEIFS(נתונים[שקל לק\"מ],נתונים[תאריך],G60,נתונים[פעילות],$J$8),NA())","v":{"$error":"#N/A"}}]
[{"$nulls":5},52,"2012-06-21",{"$f":"SUMIFS(נתונים[ק\"מ],נתונים[תאריך],G61,נתונים[פעילות],$H$8)","v":0},{"$f":"IFERROR(AVERAGEIFS(נתונים[ק\"מ לליטר],נתונים[תאריך],G61,נתונים[פעילות],$I$8),NA())","v":{"$error":"#N/A"}},{"$f":"IFERROR(AVERAGEIFS(נתונים[שקל לק\"מ],נתונים[תאריך],G61,נתונים[פעילות],$J$8),NA())","v":{"$error":"#N/A"}}]
[{"$nulls":5},53,"2012-06-22",{"$f":"SUMIFS(נתונים[ק\"מ],נתונים[תאריך],G62,נתונים[פעילות],$H$8)","v":0},{"$f":"IFERROR(AVERAGEIFS(נתונים[ק\"מ לליטר],נתונים[תאריך],G62,נתונים[פעילות],$I$8),NA())","v":{"$error":"#N/A"}},{"$f":"IFERROR(AVERAGEIFS(נתונים[שקל לק\"מ],נתונים[תאריך],G62,נתונים[פעילות],$J$8),NA())","v":{"$error":"#N/A"}}]
[{"$nulls":5},54,"2012-06-23",{"$f":"SUMIFS(נתונים[ק\"מ],נתונים[תאריך],G63,נתונים[פעילות],$H$8)","v":0},{"$f":"IFERROR(AVERAGEIFS(נתונים[ק\"מ לליטר],נתונים[תאריך],G63,נתונים[פעילות],$I$8),NA())","v":{"$error":"#N/A"}},{"$f":"IFERROR(AVERAGEIFS(נתונים[שקל לק\"מ],נתונים[תאריך],G63,נתונים[פעילות],$J$8),NA())","v":{"$error":"#N/A"}}]
[{"$nulls":5},55,"2012-06-24",{"$f":"SUMIFS(נתונים[ק\"מ],נתונים[תאריך],G64,נתונים[פעילות],$H$8)","v":0},{"$f":"IFERROR(AVERAGEIFS(נתונים[ק\"מ לליטר],נתונים[תאריך],G64,נתונים[פעילות],$I$8),NA())","v":{"$error":"#N/A"}},{"$f":"IFERROR(AVERAGEIFS(נתונים[שקל לק\"מ],נתונים[תאריך],G64,נתונים[פעילות],$J$8),NA())","v":{"$error":"#N/A"}}]
[{"$nulls":5},56,"2012-06-25",{"$f":"SUMIFS(נתונים[ק\"מ],נתונים[תאריך],G65,נתונים[פעילות],$H$8)","v":0},{"$f":"IFERROR(AVERAGEIFS(נתונים[ק\"מ לליטר],נתונים[תאריך],G65,נתונים[פעילות],$I$8),NA())","v":{"$error":"#N/A"}},{"$f":"IFERROR(AVERAGEIFS(נתונים[שקל לק\"מ],נתונים[תאריך],G65,נתונים[פעילות],$J$8),NA())","v":{"$error":"#N/A"}}]
[{"$nulls":5},57,"2012-06-26",{"$f":"SUMIFS(נתונים[ק\"מ],נתונים[תאריך],G66,נתונים[פעילות],$H$8)","v":0},{"$f":"IFERROR(AVERAGEIFS(נתונים[ק\"מ לליטר],נתונים[תאריך],G66,נתונים[פעילות],$I$8),NA())","v":{"$error":"#N/A"}},{"$f":"IFERROR(AVERAGEIFS(נתונים[שקל לק\"מ],נתונים[תאריך],G66,נתונים[פעילות],$J$8),NA())","v":{"$error":"#N/A"}}]
[{"$nulls":5},58,"2012-06-27",{"$f":"SUMIFS(נתונים[ק\"מ],נתונים[תאריך],G67,נתונים[פעילות],$H$8)","v":0},{"$f":"IFERROR(AVERAGEIFS(נתונים[ק\"מ לליטר],נתונים[תאריך],G67,נתונים[פעילות],$I$8),NA())","v":{"$error":"#N/A"}},{"$f":"IFERROR(AVERAGEIFS(נתונים[שקל לק\"מ],נתונים[תאריך],G67,נתונים[פעילות],$J$8),NA())","v":{"$error":"#N/A"}}]
[{"$nulls":5},59,"2012-06-28",{"$f":"SUMIFS(נתונים[ק\"מ],נתונים[תאריך],G68,נתונים[פעילות],$H$8)","v":0},{"$f":"IFERROR(AVERAGEIFS(נתונים[ק\"מ לליטר],נתונים[תאריך],G68,נתונים[פעילות],$I$8),NA())","v":{"$error":"#N/A"}},{"$f":"IFERROR(AVERAGEIFS(נתונים[שקל לק\"מ],נתונים[תאריך],G68,נתונים[פעילות],$J$8),NA())","v":{"$error":"#N/A"}}]
[{"$nulls":5},60,"2012-06-29",{"$f":"SUMIFS(נתונים[ק\"מ],נתונים[תאריך],G69,נתונים[פעילות],$H$8)","v":0},{"$f":"IFERROR(AVERAGEIFS(נתונים[ק\"מ לליטר],נתונים[תאריך],G69,נתונים[פעילות],$I$8),NA())","v":{"$error":"#N/A"}},{"$f":"IFERROR(AVERAGEIFS(נתונים[שקל לק\"מ],נתונים[תאריך],G69,נתונים[פעילות],$J$8),NA())","v":{"$error":"#N/A"}}]